Workbook

Sheet паспорт
A1: ПАТ "УКРТРАНСГАЗ" | G1: ПАСПОРТ ФІЗИКО-ХІМІЧНИХ ПОКАЗНИКІВ ПРИРОДНОГО ГАЗУ № 870
A2: Філія "УМГ "Черкаситрансгаз" | G2: переданого Кременчуцьким ЛВУМГ та прийнятого ПАТ "Полтавагаз", ПАТ "Кременчукгаз", ВАТ"Кіровоградгаз"
A3: Кременчуцьке ЛВУМГ | G3: Маршрут № 870
A4: Вимірювальна хіміко-аналітична лабораторія
A5: Кременчуцького промислового майданчика
A6: Свідоцтво № 0612 КФ від 30.12.15р. чинне до 20.06.19р. | K6: по газопроводу "Єлець-Кременчук-Кривий Ріг" | V6: за період з | X6: 2017-03-01 | Z6: по | AA6: 2017-03-31
A8: Число місяця | B8: Компонентний склад, % мол. | N8: Фізико-хімічні показники газу обчислені на основі компонентного складу, 101,325 кПа | X8: Температура точки роси за вологою (Р = 3.92 МПа), °С | Y8: Температура точки роси за вуглеводнями, °С | Z8: Вміст сірководню, г/м3 | AA8: Вміст меркаптанової сірки, г/м3 | AB8: Вміст механічних домішок, г/м3
N9: Густина абсолютна, кг/м3,при 20 °С, | O9: Температура вимірювання/згоряння при 20/25°С
B10: метан, С1 | C10: етан, С2 | D10: пропан, С3 | E10: ізо-бутан, і-С4 | F10: н-бутан, н-С4 | G10: нео-пентан, нео-С5 | H10: ізо-пентан, і-С5 | I10: н-пентан, н-С5 | J10: гексани та вищі, С6+ | K10: кисень, О2 | L10: азот, N2 | M10: діоксид вуглецю, CО2 | O10: Теплота згоряння нижча | R10: Теплота згоряння вища | U10: Число Воббе вище
O11: ккал/м³ | P11: МДж/м³ | Q11: кВт⋅год/м³ | R11: ккал/м³ | S11: МДж/м³ | T11: кВт⋅год/м³ | U11: ккал/м³ | V11: МДж/м³ | W11: кВт⋅год/м³
A12: 1 | O12: =P12*238.8459 -> 8166.141321 | P12: 34.19 | Q12: =P12/3.6 -> 9.497222222 | R12: =S12*238.8459 -> 9057.036528 | S12: 37.92 | T12: =S12/3.6 -> 10.53333333 | AC12: =SUM(B12:M12)+$K$43+$N$43 -> 0
A13: 2 | O13: =P13*238.8459 -> 8166.141321 | P13: 34.19 | Q13: 9.497222222 | R13: =S13*238.8459 -> 9057.036528 | S13: 37.92 | T13: 10.53333333 | AC13: 0
A14: 3 | O14: 8166.141321 | P14: 34.19 | Q14: 9.497222222 | R14: 9057.036528 | S14: 37.92 | T14: 10.53333333 | AC14: 0 | AD14: =IF(AC14=100,"ОК"," ") -> 
A15: 4 | O15: 8166.141321 | P15: 34.19 | Q15: 9.497222222 | R15: 9057.036528 | S15: 37.92 | T15: 10.53333333 | AC15: 0 | AD15: =IF(AC15=100,"ОК"," ") -> 
A16: 5 | O16: 8166.141321 | P16: 34.19 | Q16: 9.497222222 | R16: 9057.036528 | S16: 37.92 | T16: 10.53333333 | AC16: 0
A17: 6 | B17: 96.1638 | C17: 2.1185 | D17: 0.6548 | E17: 0.1017 | F17: 0.0983 | G17: 0.0015 | H17: 0.0184 | I17: 0.0131 | J17: 0.0102 | K17: 0.001 | L17: 0.6703 | M17: 0.1484 | N17: 0.698 | O17: 8180.472075 | P17: 34.25 | Q17: 9.513888889 | R17: 9073.755741 | S17: 37.99 | T17: 10.55277778 | U17: 11 918 | V17: 49,90 | W17: =V17/3.6 -> 13.86111111 | X17: -21,9 | AC17: 100 | AD17: ОК
A18: 7 | O18: 8180.472075 | P18: 34.25 | Q18: 9.513888889 | R18: 9073.755741 | S18: 37.99 | T18: 10.55277778 | AC18: 0
A19: 8 | O19: 8180.472075 | P19: 34.25 | Q19: 9.513888889 | R19: 9073.755741 | S19: 37.99 | T19: 10.55277778 | AC19: 0
A20: 9 | O20: 8180.472075 | P20: 34.25 | Q20: 9.513888889 | R20: 9073.755741 | S20: 37.99 | T20: 10.55277778 | AC20: 0
A21: 10 | O21: 8180.472075 | P21: 34.25 | Q21: =P21/3.6 -> 9.513888889 | R21: 9073.755741 | S21: 37.99 | T21: =S21/3.6 -> 10.55277778 | AC21: 0
A22: 11 | O22: 8180.472075 | P22: 34.25 | Q22: 9.513888889 | R22: 9073.755741 | S22: 37.99 | T22: 10.55277778 | AC22: 0
A23: 12 | O23: 8180.472075 | P23: 34.25 | Q23: 9.513888889 | R23: 9073.755741 | S23: 37.99 | T23: 10.55277778 | AC23: 0
A24: 13 | B24: 95.8953 | C24: 2.2789 | D24: 0.7171 | E24: 0.1141 | F24: 0.1117 | G24: 0.0016 | H24: 0.0222 | I24: 0.0164 | J24: 0.0169 | K24: 0.001 | L24: 0.6615 | M24: 0.1633 | N24: 0.7006 | O24: 8206.745124 | P24: 34.36 | Q24: 9.544444444 | R24: 9100.02879 | S24: 38.1 | T24: 10.58333333 | U24: 11932 | V24: 49.96 | W24: 13.87777778 | X24: -22,3 | AC24: 100 | AD24: ОК
A25: 14 | O25: 8206.745124 | P25: 34.36 | Q25: 9.544444444 | R25: 9100.02879 | S25: 38.1 | T25: 10.58333333 | AC25: 0
A26: 15 | O26: 8206.745124 | P26: 34.36 | Q26: 9.544444444 | R26: 9100.02879 | S26: 38.1 | T26: 10.58333333 | AC26: 0
A27: 16 | O27: 8206.745124 | P27: 34.36 | Q27: =P27/3.6 -> 9.544444444 | R27: 9100.02879 | S27: 38.1 | T27: =S27/3.6 -> 10.58333333 | AC27: 0
A28: 17 | O28: 8206.745124 | P28: 34.36 | Q28: 9.544444444 | R28: 9100.02879 | S28: 38.1 | T28: 10.58333333 | AC28: 0
A29: 18 | O29: 8206.745124 | P29: 34.36 | Q29: 9.544444444 | R29: 9100.02879 | S29: 38.1 | T29: 10.58333333 | AC29: 0
A30: 19 | O30: 8206.745124 | P30: 34.36 | Q30: 9.544444444 | R30: 9100.02879 | S30: 38.1 | T30: 10.58333333 | AC30: 0
A31: 20 | B31: 95.8682 | C31: 2.3242 | D31: 0.7294 | E31: 0.1155 | F31: 0.1116 | G31: 0.0015 | H31: 0.021 | I31: 0.0149 | J31: 0.0128 | K31: 0.0009 | L31: 0.6402 | M31: 0.1598 | N31: 0.7007 | O31: 8211.522042 | P31: 34.38 | Q31: 9.55 | R31: 9104.805708 | S31: 38.12 | T31: 10.58888889 | U31: 11 938 | V31: 49,98 | W31: =V31/3.6 -> 13.88333333 | X31: -22,1 | AC31: 100 | AD31: =IF(AC31=100,"ОК"," ") -> ОК
A32: 21 | O32: 8211.522042 | P32: 34.38 | Q32: 9.55 | R32: 9104.805708 | S32: 38.12 | T32: 10.58888889 | AC32: 0
A33: 22 | O33: 8211.522042 | P33: 34.38 | Q33: 9.55 | R33: 9104.805708 | S33: 38.12 | T33: 10.58888889 | AC33: 0
A34: 23 | O34: 8211.522042 | P34: 34.38 | Q34: =P34/3.6 -> 9.55 | R34: 9104.805708 | S34: 38.12 | T34: =S34/3.6 -> 10.58888889 | AC34: 0 | AD34: =IF(AC34=100,"ОК"," ") -> 
A35: 24 | O35: 8211.522042 | P35: 34.38 | Q35: 9.55 | R35: 9104.805708 | S35: 38.12 | T35: 10.58888889 | AC35: 0
A36: 25 | O36: 8211.522042 | P36: 34.38 | Q36: 9.55 | R36: 9104.805708 | S36: 38.12 | T36: 10.58888889 | AC36: 0
A37: 26 | O37: 8211.522042 | P37: 34.38 | Q37: 9.55 | R37: 9104.805708 | S37: 38.12 | T37: =S37/3.6 -> 10.58888889 | AC37: 0
A38: 27 | B38: 95.4323 | C38: 2.6143 | D38: 0.8279 | E38: 0.1324 | F38: 0.1287 | G38: 0.0016 | H38: 0.024 | I38: 0.0173 | J38: 0.0137 | K38: 0.0009 | L38: 0.6173 | M38: 0.1896 | N38: 0.7046 | O38: 8249.737386 | P38: 34.54 | Q38: 9.594444444 | R38: 9145.409511 | S38: 38.29 | T38: 10.63611111 | U38: 11 958 | V38: 50,07 | W38: 13.90833333 | X38: -21,6 | Z38: 0 | AA38: 0 | AB38: відсутні | AC38: 100 | AD38: ОК
A39: 28 | O39: 8249.737386 | P39: 34.54 | Q39: 9.594444444 | R39: 9145.409511 | S39: 38.29 | T39: 10.63611111 | AC39: 0
A40: 29 | O40: =P40*238.8459 -> 8249.737386 | P40: 34.54 | Q40: =P40/3.6 -> 9.594444444 | R40: =S40*238.8459 -> 9145.409511 | S40: 38.29 | T40: =S40/3.6 -> 10.63611111 | AC40: 0
A41: 30 | O41: =P41*238.8459 -> 8249.737386 | P41: 34.54 | Q41: =P41/3.6 -> 9.594444444 | R41: 9145.409511 | S41: 38.29 | T41: 10.63611111 | AC41: 0
A42: 31 | O42: 8249.737386 | P42: 34.54 | Q42: 9.594444444 | R42: 9145.409511 | S42: 38.29 | T42: 10.63611111 | AC42: 0
A43: Рівень одоризації відповідає чинним нормативним документам | O43: =8201 -> 8201 | P43: =AVERAGE(P12:P42) -> 34.34129032 | Q43: 9.539247312 | R43: =9094 -> 9094 | S43: 38.08129032 | T43: 10.5781362
H44: Середньозважене значення теплоти згоряння:
B46: Головний інженер Кременчуцького ЛВУМГ | N46: Грицик О. М. | Z46: 2017-04-03
C47: Підрозділу підприємства, якому підпорядкована лабораторія | M47: прізвище | V47: підпис | Z47: дата
B48: Інженер-лаборант ВХАЛ | N48: Голованова Ж. К. | Z48: 2017-04-03
C49: Лабораторія, де здійснювалось вимірювання газу | M49: прізвище | V49: підпис | Z49: дата
B50: Провідний економіст із збуту | N50: Кривулькін І. В. | Z50: 2017-04-03
C51: Підрозділу, відповідального за облік газу за маршрутом | M51: прізвище | V51: підпис | Z51: дата

Sheet додаток
A2: Додаток до Паспорту фізико-хімічних показників природного газу № 870
A4: Область | B4: ГРС, прямий споживач | C4: Cередньозважене значення вищої теплоти згоряння
C5: МДж/м³ | D5: ккал/м³ | E5: кВт*год./м³
A6: Полтавська область | B6: ГРС Хорішки | C6: 38.07505756 | D6: 9094.07139 | E6: 10.57640488
B7: ГРС Запсілля | C7: 38.07565473 | D7: 9094.214021 | E7: 10.57657076
B8: ГРС Білецьківка | C8: 38.07368565 | D8: 9093.743715 | E8: 10.57602379
A9: Кіровоградська область | B9: ГРС Павлівка | C9: 38.07311712 | D9: 9093.607923 | E9: 10.57586587
B10: ГРС Павлиш | C10: 38.07795096 | D10: 9094.762467 | E10: 10.5772086
B11: ГРС Власівка | C11: 38.07907628 | D11: 9095.031246 | E11: 10.57752119
B12: ГРС Вишнівці | C12: 38.07502464 | D12: 9094.063528 | E12: 10.57639573
B13: ГРС Червона Кам'янка | C13: 38.07479917 | D13: 9094.009676 | E13: 10.5763331
A14: Середньозважене значення вищої теплоти згоряння по маршруту № 870 | C14: 38.07643965 | D14: 9094.401496 | E14: 10.57678879
A18: Головний інженер Кременчуцького ЛВУМГ | D18: Грицик О. М. | F18: 2017-04-03
A19: Підрозділу підприємства, якому підпорядкована лабораторія | D19: прізвище | E19: підпис | F19: дата
A20: Інженер-лаборант ВХАЛ | D20: Голованова Ж. К. | F20: 2017-04-03
A21: Лабораторія, де здійснювалось вимірювання газу | D21: прізвище | E21: підпис | F21: дата
A22: Провідний економіст із збуту | D22: Кривулькін І. В. | F22: 2017-04-03
A23: Підрозділу, відповідального за облік газу за маршрутом | D23: прізвище | E23: підпис | F23: дата

Sheet variablesList (hidden)
A1: 3 | B1: x:\gaysin | C1: 10, 11, 24, 25, 127, 128, 132, 180, 207, 215 | D1: x:\
B2: x:\Illinci
B3: x:\Talne
